Cogmind - Beta 13 @@@ ROGUE MODE // 2024.04.02 @ 14:39:21 Player: Scringis Result: Destroyed by as-88786 with Assembled Blade Performance ------------- Evolutions (0) 0 Regions Visited (4) 800 Robots Destroyed (18) 90 Value Destroyed (357) 357 Prototype IDs (3) 60 Alien Tech Used (0) 0 Bonus (374) 374 TOTAL SCORE: 1681 Bonus ------- Follower Combat Kills 74 Aligned with FarCom 300 Cogmind --------- Core Integrity 0/250 Matter 219/300 Energy 125/125 System Corruption 2% Temperature Cool (0) Movement Treading (240) Ox1 Location -9/Mines Parts ------- > --- POWER (1) -------- Light Ion Engine > --- PROPULSION (2) --- Light Treads > --- UTILITY (2) ------ Large Storage Unit > --- WEAPON (2) ------- Maul > --- INVENTORY (15) --- Light Treads Large Storage Unit Weight Redist. System Authchip [R/NC] Authchip [R/NC] Authchip [R/Combat] Authchip [R/Combat] Skeleton Box Heavy Assault Rifle Grenade Launcher Peak State ------------ > --- POWER ------------ Light Nuclear Core > --- PROPULSION ------- Light Treads Light Treads > --- UTILITY ---------- Large Storage Unit > --- WEAPON ----------- YOLO Cannon > --- INVENTORY -------- Light Ion Engine Light Treads Large Storage Unit Weight Redist. System Authchip [R/NC] Authchip [R/NC] Authchip [R/Combat] Authchip [R/Combat] Particle Cannon Heavy Assault Rifle Heavy Assault Rifle Grenade Launcher Maul [Rating: 29] Favorites ----------- Power Light Nuclear Core Engine Light Ion Engine Power Core Light Nuclear Core Propulsion Light Treads Treads Light Treads Utility Large Storage Unit Device Skeleton Box Storage Large Storage Unit Weapon Heavy Assault Rifle Energy Gun Medium Laser Energy Cannon Particle Cannon Ballistic Gun Heavy Assault Rifle Impact Weapon Maul Build | -11 -10 -10 -10 -9 ------- Run | Yrd Mat Min Exi Min Slots Evolved . | . . . . . Power . | . . . . . Propulsion . | . . . . . Utility . | . . . . . Weapon . | . . . . . Parts Attached 21 | 6 6 . 6 3 Power 3 | 1 1 . . 1 Engine 2 | 1 . . . 1 Core 1 | . 1 . . . Reactor . | . . . . . Propulsion 3 | 2 1 . . . Treads 3 | 2 1 . . . Leg . | . . . . . Wheel . | . . . . . Hover . | . . . . . Flight . | . . . . . Utility 4 | 1 1 . 2 . Device 2 | . . . 2 . Storage 2 | 1 1 . . . Processor . | . . . . . Hackware . | . . . . . Protection . | . . . . . Artifact . | . . . . . Weapon 11 | 2 3 . 4 2 Energy Gun 1 | 1 . . . . Energy Cannon 3 | . . . 2 1 Ballistic Gun 6 | 1 3 . 2 . Ballistic Cannon . | . . . . . Launcher . | . . . . . Special Weapon . | . . . . . Impact Weapon 1 | . . . . 1 Slashing Weapon . | . . . . . Piercing Weapon . | . . . . . Special Melee Weapon . | . . . . . Unidentified Prototypes 3 | . . . 3 . Parts Lost 3 | . . . . 3 Power 1 | . . . . 1 Propulsion 1 | . . . . 1 Utility . | . . . . . Weapon 1 | . . . . 1 Highest Loss Streak 2 | . . . . 2 To Critical Strikes . | . . . . . Average Slot Usage (%) 84 | . 84 85 85 78 Engine 1 | . 3 . . 1 Core 12 | . 10 14 14 6 Treads 27 | . 27 28 28 28 Storage 14 | . 14 14 14 14 Ballistic Gun 27 | . 27 28 28 24 Naked Turns . | . . . . . Heaviest Build 31 | 11 31 31 31 31 Greatest Support 40 | 40 40 40 40 40 Greatest Overweight (x) . | . . . . . Average Overweight (x) . | . . . . . Largest Inventory Capacity 15 | 8 15 15 15 15 Average Capacity 12 | 6 10 15 15 15 Most Carried 15 | 5 13 13 15 12 Average Carried 10 | 1 8 13 12 11 Final Capacity 15 | 8 15 15 15 15 Final Carried 13 | 2 13 13 12 10 Class Distribution -------------------- 100% | Mutant Dominant Class ---------------- Mutant | -10/Materials Mutant | -10/Mines Mutant | -10/Exiles Mutant | -9/Mines Resources | -11 -10 -10 -10 -9 ----------- Run | Yrd Mat Min Exi Min Matter Collected 634 | 114 397 34 . 89 Remotely . | . . . . . Salvage Created 631 | . 510 . . 121 Parts 45 | . 43 . . 2 Haulers Intercepted 2 | . 2 . . . Recyclers Shooed . | . . . . . Parts Field Recycled . | . . . . . Retrieved Matter . | . . . . . Parts Self-Destructed . | . . . . . Prevented . | . . . . . Kills | -11 -10 -10 -10 -9 ------- Run | Yrd Mat Min Exi Min Combat Hostiles Destroyed 19 | . 11 . . 8 Melee 2 | . . . . 2 Guns 15 | . 11 . . 4 Cannons 1 | . . . . 1 Classes Destroyed 6 | . 5 . . 1 Worker 2 | . 2 . . . Hauler 2 | . 2 . . . Watcher 1 | . 1 . . . Swarmer 5 | . 3 . . 2 Grunt 8 | . 8 . . . Assembled 6 | . . . . 6 Best Kill Streak 6 | . 3 . . 6 Combat Bots Only 6 | . 3 . . 6 Max Kills in Single Turn 2 | . 1 . . 2 Gunslinging . | . . . . . Exploded . | . . . . . Melee 1 | . . . . 1 Uniques/NPCs Destroyed . | . . . . . Combat | -11 -10 -10 -10 -9 -------- Run | Yrd Mat Min Exi Min Hostile Shots Fired 117 | . 49 . . 68 Missed 27 | . 13 . . 14 Damage Taken 1192 | . 363 . . 829 Core 278 | . 84 . . 194 Absorbed by Shields . | . . . . . Core Remaining (%) 100 | 100 . . . . Volleys Fired 61 | . 43 1 . 17 Largest 2 | . 2 2 . 2 Hottest 91 | . 46 46 . 91 Shots Fired 121 | . 86 2 . 33 Gun 118 | . 86 2 . 30 Cannon 3 | . . . . 3 Launcher . | . . . . . Special . | . . . . . Kinetic 118 | . 86 2 . 30 Thermal 3 | . . . . 3 Explosive . | . . . . . Electromagnetic . | . . . . . Robot Hit Streak 7 | . 7 2 . 6 Robot Miss Streak 5 | . 5 1 . 2 Penetration Max . | . . . . . Secondary Targets 3 | . 2 . . 1 Max Gunslinging Chain 1 | . 1 . . 1 Shots Hit Robots 74 | . 46 1 . 27 Core Hits 32 | . 20 1 . 11 Critical Kills 1 | . . . . 1 Critical Parts Destroyed 3 | . 2 . . 1 Critical Strikes 4 | . 2 . . 2 Destroy 3 | . 2 . . 1 Smash 1 | . . . . 1 Melee Attacks 6 | . . . . 6 Impact 6 | . . . . 6 Slashing . | . . . . . Piercing . | . . . . . Sneak Attacks . | . . . . . Combat Hostiles . | . . . . . Follow-up Attacks . | . . . . . Damage Inflicted 1368 | . 714 46 . 608 Guns 1066 | . 685 12 . 369 Cannons 40 | . . . . 40 Explosions . | . . . . . Melee 199 | . . . . 199 Ramming 63 | . 29 34 . . Kinetic 1066 | . 685 12 . 369 Thermal 40 | . . . . 40 Explosive . | . . . . . Electromagnetic . | . . . . . Impact 199 | . . . . 199 Slashing . | . . . . . Piercing . | . . . . . Highest Corruption 2 | . . . . 2 Average Corruption 2 | . . . . 2 Corruption Purged . | . . . . . Corruption Blocked . | . . . . . Effects 1 | . . . . 1 Weapon Failures 1 | . . . . 1 Overload Shots . | . . . . . Overflow Damage 27 | . . 1 . 26 Projectiles . | . . . . . Explosions . | . . . . . Melee 27 | . . 1 . 26 Knockbacks . | . . . . . Impact . | . . . . . Kinetic . | . . . . . Secondary . | . . . . . Self-Inflicted Damage . | . . . . . Shots . | . . . . . Rammed 13 | . 7 6 . . Targets Rammed 13 | . 7 6 . . Kicked . | . . . . . Crushed . | . . . . . Highest Temperature 85 | . 12 . . 85 Average Temperature 16 | . 4 . . 25 Received Heat Transfer 522 | . 153 . . 369 Siege Activations . | . . . . . Robots Corrupted . | . . . . . Combat Hostiles . | . . . . . Parts Fried . | . . . . . Impact Corruptions 2 | . . 1 . 1 Robots Melted . | . . . . . Combat Hostiles . | . . . . . Parts Melted . | . . . . . Heat Transferred 74 | . . . . 74 Parts Sabotaged . | . . . . . Parts Stolen . | . . . . . Parts Stripped . | . . . . . Power Chain Reactions . | . . . . . Alert | -11 -10 -10 -10 -9 ------- Run | Yrd Mat Min Exi Min Peak Influence 150 | . 150 71 . 119 Initial 13 | . . 13 . . Average 29 | . 45 10 . 76 Maximum Alert Level . | . . . . . Low Security (%) 100 | 100 100 100 . 100 Level 1 . | . . . . . Level 2 . | . . . . . Level 3 . | . . . . . Level 4 . | . . . . . Level 5 . | . . . . . High Security . | . . . . . Max Security . | . . . . . Squads Dispatched 2 | . 2 . . . Investigation 1 | . 1 . . . Extermination . | . . . . . Reinforcement 1 | . 1 . . . Assault . | . . . . . Garrison . | . . . . . Intercept . | . . . . . Searches Triggered . | . . . . . Construction Impeded . | . . . . . Haulers Reinforced . | . . . . . Active Scanning Responses . | . . . . . Cargo Convoy Interrupts . | . . . . . Stealth | -11 -10 -10 -10 -9 --------- Run | Yrd Mat Min Exi Min Distress Signals 3 | . 3 . . . Communications Jammed . | . . . . . Distress Signals . | . . . . . Times Spotted 44 | . 21 2 . 21 Peak Tracking Total 18 | . 4 2 . 18 Tactical Retreats 3 | . 1 . . 2 Traps | -11 -10 -10 -10 -9 ------- Run | Yrd Mat Min Exi Min Traps Triggered 3 | . 3 . . . Indirectly . | . . . . . Trap Hack Attempts . | . . . . . Triggered . | . . . . . Disarmed . | . . . . . Reprogrammed . | . . . . . Reused . | . . . . . Traps Extracted . | . . . . . Installed . | . . . . . Triggered . | . . . . . Machines | -11 -10 -10 -10 -9 ---------- Run | Yrd Mat Min Exi Min Machines Disabled . | . . . . . Max in Single Turn . | . . . . . Machines Repaired . | . . . . . Machines Dismantled . | . . . . . Machines Sabotaged . | . . . . . Overloaded Fab Kills . | . . . . . Hacking | -11 -10 -10 -10 -9 --------- Run | Yrd Mat Min Exi Min Machines Accessed 2 | . 2 . . . Terminals 1 | . 1 . . . Fabricators . | . . . . . Repair Stations . | . . . . . Recycling Units 1 | . 1 . . . Scanalyzers . | . . . . . Garrison Access . | . . . . . Total Hacks 5 | . 5 . . . Successful 4 | . 4 . . . Failed 1 | . 1 . . . Catastrophic . | . . . . . Database Lockouts . | . . . . . Manual 1 | . . . 1 . Terminals 2 | . 2 . . . Fabricators . | . . . . . Repair Stations . | . . . . . Recycling Units 3 | . 3 . . . Scanalyzers . | . . . . . Garrison Access . | . . . . . Terminal Hacks 2 | . 2 . . . Locate Traps 1 | . 1 . . . Zone Layout 1 | . 1 . . . Fabricator Hacks . | . . . . . Repair Station Hacks . | . . . . . Recycling Unit Hacks 2 | . 2 . . . Report Inventory 1 | . 1 . . . Retrieve Matter 1 | . 1 . . . Scanalyzer . | . . . . . Garrison Access Hacks . | . . . . . Unauthorized Hacks . | . . . . . Terminals . | . . . . . Fabricators . | . . . . . Repair Stations . | . . . . . Recycling Units . | . . . . . Scanalyzers . | . . . . . Garrison Access . | . . . . . Data Cores Recovered . | . . . . . Used . | . . . . . Hacking Detections 1 | . 1 . . . Full Trace Events . | . . . . . Feedback Events . | . . . . . Feedback Blocked . | . . . . . Robot Schematics Acquired . | . . . . . Robots Built . | . . . . . Authchips . | . . . . . Time . | . . . . . Total Robot Build Rating . | . . . . . Part Schematics Acquired . | . . . . . Parts Built . | . . . . . Authchips . | . . . . . Time . | . . . . . Total Part Build Rating . | . . . . . Parts Repaired . | . . . . . Time . | . . . . . Parts Recycled . | . . . . . Recycled Matter . | . . . . . Retrieved Matter . | . . . . . Retrieved Components . | . . . . . Parts Scanalyzed . | . . . . . Part Schematics Acquired . | . . . . . Parts Damaged . | . . . . . Bothacking | -11 -10 -10 -10 -9 ------------ Run | Yrd Mat Min Exi Min Used RIF Installer . | . . . . . Robots Hacked . | . . . . . Non-combat . | . . . . . Combat . | . . . . . Robot Hacks Applied . | . . . . . Relay Couplers Released . | . . . . . Fabnet Peak Effective % . | . . . . . Robots Rewired . | . . . . . Allies Hacked . | . . . . . Hacks Repelled . | . . . . . Allies | -11 -10 -10 -10 -9 -------- Run | Yrd Mat Min Exi Min Total Allies 3 | . . 3 . . Largest Group 3 | . . 3 3 3 Highest-Rated Group 40 | . . 40 40 40 Highest-Rated Ally 16 | . . 16 16 16 Total Orders . | . . . . . Ally Attacks 30 | . . 12 . 18 Total Damage 273 | . . 147 . 126 Kills 4 | . . 2 . 2 Allies Corrupted . | . . . . . Allies Melted . | . . . . . Intel | -11 -10 -10 -10 -9 ------- Run | Yrd Mat Min Exi Min Robot Analysis Total . | . . . . . Derelict Logs Recovered 3 | . . 1 . 2 Drone Launches . | . . . . . Drone Recoveries . | . . . . . Exploration | -11 -10 -10 -10 -9 ------------- Run | Yrd Mat Min Exi Min Turns Passed 3308 | 91 1316 1250 532 119 Spaces Moved 1898 | 60 712 771 325 30 Core 16 | 16 . . . . Treads 1882 | 44 712 771 325 30 Legs . | . . . . . Wheels . | . . . . . Hover . | . . . . . Flight . | . . . . . Fastest Speed 50 | 50 160 160 160 160 Average Speed 159 | 130 160 160 160 160 Slowest Speed 160 | 160 160 160 160 160 Overloaded Moves . | . . . . . Propulsion Burnouts . | . . . . . Robots Hopped . | . . . . . Cave-ins Triggered . | . . . . . Exploration Rate (%) 47 | 4 75 96 51 9 Regions Visited 4 Branch Regions 3 Pre-discovered Areas 1 | . . 1 . . Known Exits Taken . | . . . . . Unknown Exits Taken 4 | 1 1 1 1 . Scrap Searched 3 | . . 2 . 1 Spaces Dug . | . . . . . Terrain Destroyed . | . . . . . Melee . | . . . . . Projectile . | . . . . . AOE . | . . . . . Terrain Rammed . | . . . . . Walls Destroyed . | . . . . . Machines Disabled . | . . . . . Actions | -11 -10 -10 -10 -9 --------- Run | Yrd Mat Min Exi Min Total 2053 | 73 802 782 340 56 Wait 11 | . 6 5 . . Move 1894 | 59 711 770 324 30 Hop . | . . . . . Pick Up 33 | 8 21 . 4 . Fast Attach . | . . . . . Attach 18 | 6 4 . 6 2 Detach 1 | . . . 1 . Swap 3 | . 2 . . 1 Drop 13 | . 8 . 5 . Fire 61 | . 43 1 . 17 Melee 6 | . . . . 6 Ram . | . . . . . Kick . | . . . . . Crush 13 | . 7 6 . . Escape Stasis . | . . . . . Rewire . | . . . . . Trap . | . . . . . Miscellaneous . | . . . . . Route ------- -11/Scrapyard -10/Materials (discovered 4 exits: [*Mat x2] / [*Min x2]) -10/Mines (discovered 2 exits: [*Mat] / *Exi) -10/Exiles -9/Mines History --------- Turn | Location | Event 7 | -11/Scrapyard | Discovered new exit (range 14) 92 | -11/Scrapyard | Entered Materials 283 | -10/Materials | Discovered new exit (range 15) 300 | -10/Materials | Build established: Mutant 618 | -10/Materials | Discovered new exit (range 5) 640 | -10/Materials | Discovered new exit (range 10) 931 | -10/Materials | Discovered new exit (range 13) 1408 | -10/Materials | Entered Mines 1432 | -10/Mines | Assisted by bots powering up and referring to "LRC-V3" 1464 | -10/Mines | Learned location of Storage (-7) 2152 | -10/Mines | Found a hidden stash of uninstalled traps 2412 | -10/Mines | Discovered new exit (range 5) 2640 | -10/Mines | Discovered new exit (range 16) 2658 | -10/Mines | Entered Exiles 2658 | -10/Exiles | Accompanied by 3 allies 2698 | -10/Exiles | Discovered new exit (range 15) 2721 | -10/Exiles | Met 8R-AWN 2751 | -10/Exiles | Met EX-HEX 2815 | -10/Exiles | Met EX-BIN 2857 | -10/Exiles | Aligned with FarCom system 2858 | -10/Exiles | Given EX-Vault access code 2910 | -10/Exiles | Opened EX-Vault 2916 | -10/Exiles | Found Prototype Device 2917 | -10/Exiles | Identified Skeleton Box 2922 | -10/Exiles | Found Prototype Device 2923 | -10/Exiles | Identified PSU Rigger 2931 | -10/Exiles | Found Prototype Energy Cannon 2933 | -10/Exiles | Identified YOLO Cannon 2974 | -10/Exiles | Warned to stay clear of 0b10 Research branches 3028 | -10/Exiles | Met EX-DEC 3190 | -10/Exiles | Left Exiles lab with Skeleton Box 3190 | -10/Exiles | Entered Mines 3190 | -9/Mines | Accompanied by 3 allies 3193 | -9/Mines | Met a Derelict bent on vengeance 3217 | -9/Mines | Learned Materials emergency access door positions 3234 | -9/Mines | Assembled infested the area 3263 | -9/Mines | Core integrity fell below 50% 3286 | -9/Mines | Lost 3 allies 3299 | -9/Mines | Core integrity fell below 20% 3309 | -9/Mines | Destroyed by as-88786 with Assembled Blade Last Messages --------------- Trooper 1a knocked back. as-95972 destroyed. Trooper 1b destroyed. as-71166 suffers critical hit (Destroy). Destroyed Asb. Maul. as-30367 destroyed. Switching to secondary target: as-59549. System corrupted: Hvy. Assault Rifle jammed. Hvy. Assault Rifle destroyed. as-59549 destroyed. as-51176 destroyed. as-93727 destroyed. Lgt. Treads destroyed. Destroyed Asb. Hover Unit. as-96099 system corrupted by crushing effect. as-96099 system terminally corrupted. Acquired 11 matter. as-31548 suffers critical hit (Smash). as-31548 destroyed. Particle Cannon severed. Map ----- +----------------------------------------------------+ | ?????????????????????????????????????????????????? | | ?????????????????????????????????????????????????? | | ?????????????????????????????????????????????????? | | ?????????????????????????????????????????????????? | | ?????????????????????????????????????????????????? | | ?????????????????????????????????????????????????? | | ?????????????????????????????????????????????????? | | ?????????????????????????????????????????????????? | | ?????????????????????????????????????????????????? | | ?#???????????????????????????????????????????????? | | ?# ??????????????????????????????????????????????? | | ?# ??????????????????????????????????????????????? | | ?# ??????????????????????????????????????????????? | | ?# ??????????????????????????????????????????????? | | ?# ??????????????????????????????????????????????? | | ?# ??????????????????????????????????????????????? | | ?# ##????????????????????????????????????????????? | | ## ##?????????????####??????????????????????????? | | # ##???????????##% ##?????????????????????????? | | * #???????????#! ! #?????????????????????????? | | [#####???????# #?????????????????????????? | | # == =%! ########## ! ##########????????????????? | | # % [### !a ##???????????????? | | # * #?# [%% a ????????? | | # #?########### ##%### " ????????? | | ## ##???????????## ###@#????????# ????????? | | ?#####?????????????####?#a#??????????????????????? | | ????????????????????????#%#??????????????????????? | | ????????????????????????# ??????????????????????? | | ????????????????????????###??????????????????????? | | ?????????????????????????????????????????????????? | | ?????????????????????????????????????????????????? | | ?????????????????????????????????????????????????? | | ?????????????????????????????????????????????????? | | | | | | | | | | | | | | | | | | | | | | | | | | | | | | | | | +----------------------------------------------------+ Best States ------------- Heat Dissipation 25 Energy Generation 14 Energy Capacity 160 Matter Stores 300 Matter Capacity 300 Sight Range 16 Terrain Scan Density 10 Evasion (%) 50 Recoil Reduction 2 Authchip Count 4 Item Schematics ----------------- None Robot Schematics ------------------ None Fabricated ------------ Nothing Alien Tech Used ----------------- None Achievements -------------- None Challenges ------------ None Game ------ Seed ActiveConcussiveDoublenader Manual? 0 Play Time 00:12:57 Cumulative 7.9 hours Start 2024.04.02 @ 14:27:55 End 2024.04.02 @ 14:39:21 Sessions 1 Manual Loads 0 Difficulty Rogue Special Mode None Game No. 24 Rogue 24 Adventurer 0 Explorer 0 Win Type - Total 0 Types 0/0/0/0/0/0/0/0/0 Lore% 14 Gallery% 12 Achievement% 13 Wizard Run 0 Options --------- Layout 1 ASCII 0 Keyboard 0 Movement Arrows Keybinds 0 Fullscreen 1 Font 24/Smallcaps Map View 50x35 Zoom Use 0% Tactical HUD 0 Map Filters NONE Filters NONE Steam 1 RUN: bd7196a9-04f8-4435-9a9f-988956e4b8e1